fUSD/lending_fUSD_20240618
["ID","MTS","AMOUNT","RATE_DAILY","PERIOD"]
[329817372,1718694662921,-500.0,0.00022191,3]
[329817373,1718694662932,-500.0,0.00022191,3]
[329817374,1718694662942,-500.0,0.00022191,3]
[329817375,1718694662951,-622.99,0.00022191,3]
[329817376,1718694662962,-500.0,0.00022191,3]
[329817377,1718694662972,-500.0,0.00022191,3]
[329817378,1718694662981,-500.0,0.00022191,3]
[329817379,1718694662991,-500.0,0.00022191,3]
[329817380,1718694663001,-500.0,0.00022191,3]
[329817381,1718694663012,-580.99,0.00022191,3]
[329817382,1718694663021,-500.0,0.00022191,3]
[329817383,1718694663031,-1490.19,0.00022191,3]
[329817384,1718694663041,-500.0,0.00022191,3]
[329817385,1718694663051,-871.1,0.00022191,3]
[329817386,1718694663124,-500.0,0.00022191,3]
[329817387,1718694663134,-500.0,0.00022191,3]
[329817388,1718694663144,-500.0,0.00022191,3]
[329817389,1718694663154,-500.0,0.00022191,3]
[329817390,1718694663164,-4655.06,0.00022191,3]
[329817391,1718694663174,-630.07840875,0.00022191,3]
[329817392,1718694663184,-500.0,0.00022191,3]
[329817393,1718694663195,-500.0,0.00022191,3]
[329817394,1718694663205,-1617.47,0.00022191,3]
[329817395,1718694663216,-500.0,0.00022191,3]
[329817396,1718694663227,-500.0,0.00022191,3]
[329817397,1718694663236,-500.0,0.00022191,3]
[329817398,1718694663246,-1538.23,0.00022191,3]
[329817399,1718694663256,-500.0,0.00022191,3]
[329817400,1718694663265,-1729.34,0.00022191,3]
[329817401,1718694663275,-994.92,0.00022191,3]
[329817402,1718694663285,-500.0,0.00022191,3]
[329817403,1718694663296,-500.0,0.00022191,3]
[329817404,1718694663307,-22887.84,0.00022191,3]
[329817405,1718694663318,-500.0,0.00022191,3]
[329817406,1718694663333,-787.5,0.00022191,3]
[329817407,1718694663343,-1453.876118,0.00022191,7]
[329817408,1718694663354,-1453.876118,0.00022191,7]
[329817409,1718694663366,-1453.876118,0.00022191,7]
[329817410,1718694663377,-500.0,0.00022191,3]
[329817411,1718694663387,-997.12,0.00022191,3]
[329817412,1718694663397,-1453.876118,0.00022191,7]
[329817413,1718694663408,-580.82,0.00022191,3]
[329817414,1718694663418,-1453.876118,0.00022191,7]
[329817415,1718694663428,-834.01,0.00022191,3]
[329817416,1718694663439,-1453.876118,0.00022191,7]
[329817417,1718694663449,-500.0,0.00022191,3]
[329817418,1718694663460,-1524.82,0.00022191,3]
[329817419,1718694663470,-937.3,0.00022191,3]
[329817420,1718694663479,-500.0,0.00022191,3]
[329817421,1718694663489,-500.0,0.00022191,3]
[329817422,1718694663499,-500.0,0.00022191,3]
[329817423,1718694663510,-1331.72,0.00022191,3]
[329817424,1718694663520,-500.0,0.00022191,3]
[329817425,1718694663529,-846.93,0.00022191,3]
[329817426,1718694663539,-500.0,0.00022191,3]
[329817427,1718694663548,-1567.76,0.00022191,3]
[329817428,1718694663558,-500.0,0.00022191,3]
[329817429,1718694663567,-500.0,0.00022191,3]
[329817430,1718694663577,-500.0,0.00022191,3]
[329817431,1718694663587,-1406.2,0.00022191,3]
[329817432,1718694663596,-610.95,0.00022191,3]
[329817433,1718694663606,-500.0,0.00022191,3]
[329817434,1718694663616,-500.0,0.00022191,3]
[329817435,1718694663626,-500.0,0.00022191,3]
[329817436,1718694663636,-500.0,0.00022191,3]
[329817437,1718694663646,-1356.03,0.00022191,3]
[329817438,1718694663656,-500.0,0.00022191,3]
[329817439,1718694663666,-500.0,0.00022191,3]
[329817440,1718694663675,-500.0,0.00022191,3]
[329817441,1718694663685,-925.54,0.00022191,3]
[329817442,1718694663695,-1128.87,0.00022191,3]
[329817443,1718694663704,-3760.51,0.00022191,3]
[329817444,1718694663716,-500.0,0.00022191,3]
[329817445,1718694663725,-500.0,0.00022191,3]
[329817446,1718694663735,-500.0,0.00022191,3]
[329817447,1718694663745,-692.64,0.00022191,3]
[329817448,1718694663755,-9408.17474974,0.00022191,3]
[329817449,1718694664299,-953.6360013,0.00022191,3]
[329817450,1718694664312,-11888.18924896,0.00022191,3]
[329817451,1718694664324,-573.33,0.00022191,3]
[329817452,1718694664337,-616.81,0.00022191,3]
[329817453,1718694664347,-500.0,0.00022191,3]
[329817454,1718694664357,-500.0,0.00022191,3]
[329817455,1718694664368,-807.31,0.00022191,3]
[329817456,1718694664379,-1295.84,0.00022191,3]
[329817457,1718694664389,-500.0,0.00022191,3]
[329817458,1718694664401,-500.0,0.00022191,3]
[329817459,1718694664411,-500.0,0.00022191,3]
[329817460,1718694664422,-584.86012768,0.00022191,3]
[329817461,1718694664432,-14438.68,0.00022191,3]
[329817462,1718694664443,-500.0,0.00022191,3]
[329817463,1718694664453,-500.0,0.00022191,3]
[329817464,1718694664467,-500.0,0.00022191,3]
[329817465,1718694664476,-2161.51,0.00022191,3]
[329817466,1718694664486,-500.0,0.00022191,3]
[329817467,1718694664496,-500.0,0.00022191,3]
[329817468,1718694664507,-770.86,0.00022191,3]
[329817469,1718694664518,-500.0,0.00022191,3]
[329817470,1718694664528,-500.0,0.00022191,3]
[329817471,1718694664539,-1084.35,0.00022191,3]
[329817472,1718694664549,-1269.91,0.00022191,3]
[329817473,1718694664559,-500.0,0.00022191,3]
[329817474,1718694664569,-7443.06760599,0.00022191,3]
[329817475,1718694664583,-2521.57213849,0.00022191,3]
[329817476,1718694664594,-3049.11535628,0.00022191,3]
[329817477,1718694664748,-659.94278815,0.00022191,3]
[329817478,1718694664760,-122.43211109,0.00022191,3]
[329817479,1718694664770,-500.0,0.00022191,3]
[329817480,1718694664780,-500.0,0.00022191,3]
[329817481,1718694664791,-628.02957672,0.00022191,3]
[329817482,1718694664800,-1705.07,0.00022191,3]
[329817483,1718694664810,-1127.14,0.00022191,3]
[329817484,1718694664819,-1047.62,0.00022191,3]
[329817485,1718694664829,-500.0,0.00022191,3]
[329817486,1718694664839,-1656.6300365,0.00022191,3]
[329817487,1718694664851,-568.64873079,0.00022191,3]
[329817488,1718694665329,-2140.34782153,0.00021915,2]
[329817489,1718694665339,-358.10140911,0.00021916,2]
[329817490,1718694665349,-500.0,0.00021917,2]
[329817491,1718694665359,-663.78123271,0.00022191,3]
[329817492,1718694665371,-500.0,0.00022191,3]
[329817493,1718694665381,-500.0,0.00022191,3]
[329817494,1718694665391,-500.0,0.00022191,3]
[329817495,1718694665400,-1395.55,0.00022191,3]
[329817496,1718694665412,-500.0,0.00022191,3]
[329817497,1718694665422,-32809.03,0.00022191,3]
[329817498,1718694665432,-500.0,0.00022191,3]
[329817499,1718694665441,-2411.53,0.00022191,3]
[329817500,1718694665451,-500.0,0.00022191,3]
[329817501,1718694665462,-768.2,0.00022191,3]
[329817502,1718694665472,-500.0,0.00022191,3]
[329817503,1718694665482,-504.0,0.00022191,3]
[329817504,1718694665492,-671.03,0.00022191,3]
[329817505,1718694665502,-500.0,0.00022191,3]
[329817506,1718694665513,-385.26125736,0.00022191,3]
[329817507,1718694665522,-1211.22,0.00022191,3]
[329817508,1718694665532,-500.0,0.00022191,3]
[329817509,1718694665542,-500.0,0.00022191,3]
[329817510,1718694665552,-561.38,0.00022191,3]
[329817511,1718694665561,-500.0,0.00022191,3]
[329817512,1718694665571,-500.0,0.00022191,3]
[329817513,1718694665580,-735.55,0.00022191,3]
[329817514,1718694665590,-3531.09,0.00022191,3]
[329817515,1718694665599,-500.0,0.00022191,3]
[329817516,1718694665609,-680.45,0.00022191,3]
[329817517,1718694665619,-500.0,0.00022191,3]
[329817518,1718694665629,-500.0,0.00022191,3]
[329817519,1718694665639,-1586.28,0.00022191,3]
[329817520,1718694665648,-2780.88,0.00022191,3]
[329817521,1718694665658,-972.76,0.00022191,3]
[329817522,1718694665668,-500.0,0.00022191,3]
[329817523,1718694665677,-5941.55,0.00022191,3]
[329817524,1718694665687,-1446.33,0.00022191,3]
[329817525,1718694665697,-500.0,0.00022191,3]
[329817526,1718694665708,-1023.0,0.00022191,3]
[329817527,1718694665720,-500.0,0.00022191,3]
[329817528,1718694665730,-500.0,0.00022191,3]
[329817529,1718694665740,-4913.27,0.00022191,3]
[329817530,1718694665749,-777.77,0.00022191,3]
[329817531,1718694665759,-519.02895308,0.00022191,3]
[329817532,1718694665769,-500.0,0.00022191,3]
[329817533,1718694665779,-551.5598253,0.00022191,3]
[329817534,1718694665789,-702.69,0.00022191,3]
[329817535,1718694665799,-756.13,0.00022191,3]
[329817536,1718694665809,-1618.1,0.00022191,3]
[329817537,1718694665818,-500.0,0.00022191,3]
[329817538,1718694665828,-594.39,0.00022191,3]
[329817539,1718694665838,-500.0,0.00022191,3]
[329817540,1718694665848,-1815.94,0.00022191,3]
[329817541,1718694665858,-620.1,0.00022191,3]
[329817542,1718694665867,-2211.5,0.00022191,3]
[329817543,1718694665877,-515.91,0.00022191,3]
[329817544,1718694665886,-4188.27,0.00022191,3]
[329817545,1718694665896,-870.75,0.00022191,3]
[329817546,1718694665906,-500.0,0.00022191,3]
[329817547,1718694665916,-500.0,0.00022191,3]
[329817548,1718694665927,-560.33,0.00022191,3]
[329817549,1718694665937,-500.0,0.00022191,3]
[329817550,1718694665947,-847.32,0.00022191,3]
[329817551,1718694665957,-579.89,0.00022191,3]
[329817552,1718694665969,-500.0,0.00022191,3]
[329817553,1718694665978,-604.94,0.00022191,3]
[329817554,1718694665987,-1137.19,0.00022191,3]
[329817555,1718694665997,-1683.78,0.00022191,3]
[329817556,1718694666007,-3538.36,0.00022191,3]
[329817557,1718694666018,-3837.06,0.00022191,3]
[329817558,1718694666028,-622.83,0.00022191,3]
[329817559,1718694666038,-500.0,0.00022191,3]
[329817560,1718694666048,-500.0,0.00022191,3]
[329817561,1718694666058,-500.0,0.00022191,3]
[329817562,1718694666067,-551.32,0.00022191,3]
[329817563,1718694666077,-2054.2,0.00022191,3]
[329817564,1718694666087,-704.93,0.00022191,3]
[329817565,1718694666097,-8449.82,0.00022191,3]
[329817566,1718694666106,-500.0,0.00022191,3]
[329817567,1718694666118,-5053.83,0.00022191,3]
[329817568,1718694666128,-4405.64,0.00022191,3]
[329817569,1718694666139,-887.82,0.00022191,3]
[329817570,1718694666150,-5301.09,0.00022191,3]
[329817571,1718694666160,-1925.16,0.00022191,3]
[329817572,1718694666171,-500.0,0.00022191,3]
[329817573,1718694666182,-2247.44,0.00022191,3]
[329817574,1718694666193,-1341.08,0.00022191,3]
[329817575,1718694666203,-500.0,0.00022191,3]
[329817576,1718694666217,-500.0,0.00022191,3]
[329817577,1718694666227,-1177.88,0.00022191,3]
[329817578,1718694666237,-2853.09,0.00022191,3]
[329817579,1718694666247,-500.0,0.00022191,3]
[329817581,1718694666256,-500.0,0.00022191,3]
[329817582,1718694666266,-3565.73,0.00022191,3]
[329817584,1718694666276,-603.85,0.00022191,3]
[329817585,1718694666285,-563.02,0.00022191,3]
[329817586,1718694666296,-500.0,0.00022191,3]
[329817587,1718694666306,-852.67,0.00022191,3]
[329817588,1718694666316,-945.6,0.00022191,3]
[329817589,1718694666330,-18687.1,0.00022191,3]
[329817590,1718694666340,-11593.14,0.00022191,3]
[329817591,1718694666350,-500.0,0.00022191,3]
[329817592,1718694666360,-500.0,0.00022191,3]
[329817593,1718694666371,-1050.13,0.00022191,3]
[329817594,1718694666381,-349.57949918,0.00022191,3]
[329817595,1718694666391,-1706.78,0.00022191,3]
[329817596,1718694666401,-2343.16,0.00022191,3]
[329817597,1718694666412,-737.09,0.00022191,3]
[329817598,1718694666421,-500.0,0.00022191,3]
[329817599,1718694666431,-1490.84,0.00022191,3]
[329817600,1718694666442,-741.78,0.00022191,3]
[329817601,1718694666451,-1894.01,0.00022191,3]
[329817602,1718694666462,-500.0,0.00022191,3]
[329817603,1718694666472,-533.03251844,0.00022191,3]
[329817604,1718694666481,-2408.96,0.00022191,3]
[329817605,1718694666491,-5399.39,0.00022191,3]
[329817606,1718694666501,-670.02,0.00022191,3]
[329817607,1718694666512,-500.0,0.00022191,3]
[329817608,1718694666522,-500.0,0.00022191,3]
[329817609,1718694666766,-1162.19,0.00022191,3]
[329817610,1718694666775,-500.0,0.00022191,3]
[329817611,1718694666785,-500.0,0.00022191,3]
[329817612,1718694666794,-2861.3,0.00022191,3]
[329817613,1718694666803,-1314.57,0.00022191,3]
[329817614,1718694666813,-500.0,0.00022191,3]
[329817615,1718694666822,-518.54,0.00022191,3]
[329817616,1718694666832,-5998.59,0.00022191,3]
[329817617,1718694666841,-500.31,0.00022191,3]
[329817618,1718694666851,-500.0,0.00022191,3]
[329817619,1718694666860,-500.0,0.00022191,3]
[329817620,1718694666870,-500.0,0.00022191,3]
[329817621,1718694666879,-1523.83,0.00022191,3]
[329817622,1718694666888,-1119.0,0.00022191,3]
[329817623,1718694666898,-463.12,0.00022191,7]
[329817624,1718694666908,-1071.61,0.00022191,3]
[329817625,1718694666917,-487.98278377,0.00022191,3]
[329817626,1718694666926,-3334.85,0.00022191,3]
[329817627,1718694666935,-1321.62,0.00022191,3]
[329817628,1718694666945,-2378.63,0.00022191,3]
[329817629,1718694666955,-500.0,0.00022191,3]
[329817630,1718694666965,-500.0,0.00022191,3]
[329817631,1718694666974,-500.0,0.00022191,3]
[329817632,1718694666983,-500.0,0.00022191,3]
[329817633,1718694666992,-1600.62,0.00022191,3]
[329817634,1718694667002,-500.0,0.00022191,3]
[329817635,1718694667011,-3423.41,0.00022191,3]
[329817636,1718694667020,-2900.85,0.00022191,3]
[329817637,1718694667030,-269.78717122,0.00022191,3]
[329817638,1718694667039,-500.0,0.00022191,3]
[329817639,1718694667050,-2110.01,0.00022191,3]
[329817640,1718694667059,-500.0,0.00022191,3]
[329817641,1718694667069,-1574.09,0.00022191,3]
[329817642,1718694667078,-708.17,0.00022191,3]
[329817643,1718694667088,-500.0,0.00022191,3]
[329817644,1718694667097,-500.0,0.00022191,3]
[329817645,1718694667107,-6182.35,0.00022191,3]
[329817646,1718694667117,-1011.07,0.00022191,3]
[329817647,1718694667126,-421.69,0.00022191,3]
[329817648,1718694667136,-500.0,0.00022191,3]
[329817649,1718694667145,-500.0,0.00022191,3]
[329817650,1718694667155,-717.34,0.00022191,3]
[329817651,1718694667165,-2064.64,0.00022191,3]
[329817652,1718694667174,-500.0,0.00022191,3]
[329817653,1718694667184,-6478.98,0.00022191,3]
[329817654,1718694667194,-1107.75,0.00022191,3]
[329817655,1718694667203,-500.0,0.00022191,3]
[329817656,1718694667214,-5056.08,0.00022191,3]
[329817657,1718694667223,-1573.76,0.00022191,3]
[329817658,1718694667233,-1073.27,0.00022191,3]
[329817659,1718694667242,-525.9,0.00022191,3]
[329817660,1718694667252,-5083.61,0.00022191,3]
[329817661,1718694667261,-500.0,0.00022191,3]
[329817662,1718694667271,-3056.43,0.00022191,3]
[329817663,1718694667281,-500.0,0.00022191,3]
[329817664,1718694667290,-1188.78,0.00022191,3]
[329817665,1718694667300,-500.0,0.00022191,3]
[329817666,1718694667309,-500.0,0.00022191,3]
[329817667,1718694667319,-4034.17,0.00022191,3]
[329817668,1718694667332,-3263.85,0.00022191,3]
[329817669,1718694667342,-787.4,0.00022191,3]
[329817670,1718694667352,-1509.59,0.00022191,3]
[329817671,1718694667361,-500.0,0.00022191,3]
[329817672,1718694667373,-500.0,0.00022191,3]
[329817673,1718694667383,-3316.3,0.00022191,3]
[329817674,1718694667392,-9417.57,0.00022191,3]
[329817675,1718694667402,-500.0,0.00022191,3]
[329817676,1718694667414,-649.9,0.00022191,3]
[329817677,1718694667424,-2477.59,0.00022191,3]
[329817678,1718694667434,-500.0,0.00022191,3]
[329817679,1718694667443,-528.19143508,0.00022191,3]
[329817680,1718694667453,-2332.97412655,0.00022191,3]
[329817681,1718694667472,-185.23587345,0.00022191,3]
[329817682,1718694667482,-500.0,0.00022191,3]
[329817683,1718694667492,-500.0,0.00022191,3]
[329817684,1718694667501,-640.62117035,0.00022191,3]
[329817685,1718694667513,-31.60882965,0.00022191,3]
[329817686,1718694667523,-500.0,0.00022191,3]
[329817687,1718694667533,-3306.9,0.00022191,3]
[329817688,1718694667542,-567.0,0.00022191,3]
[329817689,1718694667551,-500.0,0.00022191,3]
[329817690,1718694667560,-1144.75110582,0.00022191,3]
[329817691,1718694667572,-2178.50889418,0.00022191,3]
[329817692,1718694667582,-589.07,0.00022191,3]
[329817693,1718694667592,-3109.90969845,0.00022191,3]
[329817694,1718694667603,-952.38710224,0.00022191,3]
[329817704,1718695490686,11239.048876,0.00022,30]
[329817705,1718695500841,280.49343,0.00022,30]
[329817771,1718695832384,-505.43,0.00017252,2]
[329817772,1718695832398,-108.09715952,0.00017252,2]
[329817774,1718695832407,-3805.29159662,0.00017253,2]
[329817776,1718695832419,-4723.3092016,0.00017253,2]
[329817778,1718695832430,-685.05424735,0.00017253,2]
[329817794,1718695832834,-258.76851609,0.00017253,2]
[329817795,1718695832846,-1331.32137545,0.00017253,2]
[329817796,1718695832857,-24727.44124452,0.00017253,2]
[329817797,1718695832868,-474.60533191,0.00017255,2]
[329817798,1718695832878,-618.09,0.00017593,2]
[329817799,1718695832887,-499.99,0.00019452,2]
[329817800,1718695832897,-3747.46,0.00019452,2]
[329817801,1718695832906,-1289.11,0.00019591,2]
[329817802,1718695832915,-462.52,0.00019591,2]
[329817803,1718695832923,-200.0,0.00019634,2]
[329817804,1718695832933,-2438.75,0.00019647,2]
[329817805,1718695832942,-8423.37,0.00019669,2]
[329817806,1718695832952,-1000.0,0.00019726,2]
[329817807,1718695832961,-250.0,0.00019773,2]
[329817808,1718695832970,-512.8,0.00019805,2]
[329817809,1718695832980,-160.62,0.00019842,2]
[329817810,1718695832990,-618.09,0.00019857,2]
[329817811,1718695833000,-150.0,0.00019872,2]
[329817812,1718695833009,-715.86,0.00019901,2]
[329817813,1718695833019,-250.0,0.00019901,2]
[329817814,1718695833028,-1013.295811,0.0002,10]
[329817815,1718695833039,-177.55,0.00020085,2]
[329817816,1718695833051,-23900.0,0.00020103,2]
[329817820,1718695833060,-762.08,0.00020116,2]
[329817824,1718695833070,-167.19,0.00020116,2]
[329817827,1718695833079,-160.62,0.00020187,2]
[329817829,1718695833088,-2582.0,0.000202,2]
[329817832,1718695833098,-167.92,0.00020352,2]
[329817835,1718695833108,-191.56,0.00020352,2]
[329817838,1718695833118,-848.71,0.00020376,2]
[329817840,1718695833127,-160.62,0.00020531,2]
[329817842,1718695833137,-500.0,0.00020547,3]
[329817845,1718695833147,-500.0,0.00020821,4]
[329817848,1718695833159,-160.62,0.00020876,2]
[329817850,1718695833168,-958.79293657,0.000209,2]
[329817852,1718695833178,-1250.0,0.00021,2]
[329817855,1718695833188,-500.0,0.00021095,5]
[329817856,1718695833198,-500.0,0.00021369,6]
[329817858,1718695833207,-10000.0,0.00021376,2]
[329817859,1718695833217,-4263.958,0.00021377,2]
[329817860,1718695833226,-5774.0,0.00021377,2]
[329817862,1718695833236,-1195.0,0.00021377,2]
[329817863,1718695833245,-1659.0,0.00021377,2]
[329817864,1718695833255,-810.0,0.00021377,2]
[329817865,1718695833264,-534.4971,0.00021617,2]
[329817866,1718695833274,-754.3141,0.00021617,2]
[329817867,1718695833283,-2500.0,0.00021617,2]
[329817868,1718695833292,-150.0,0.00021638,2]
[329817869,1718695833303,-500.0,0.00021643,7]
[329817870,1718695833313,-207.803081,0.00021647,2]
[329817871,1718695833323,-1000.0,0.00021717,2]
[329817872,1718695833333,-50125.99006977,0.00021717,2]
[329817873,1718695833345,-965.41908988,0.00021717,2]
[329817874,1718695833357,-346.48303694,0.00021717,2]
[329817875,1718695833368,-997.32022375,0.00021717,2]
[329817876,1718695833379,-585.88473432,0.00021717,2]
[329817877,1718695833390,-898.53028455,0.00021717,2]
[329817878,1718695833402,-40005.30326059,0.00021717,2]
[329817879,1718695833413,-1096.62478645,0.00021717,2]
[329817880,1718695833425,-2472.89321375,0.00021717,2]
[329817881,1718695833434,-7500.0,0.00021817,2]
[329817882,1718695833444,-157.60710863,0.00021817,2]
[329817883,1718695833453,-168.81100199,0.00021817,2]
[329817884,1718695833463,-335.41272065,0.00021817,2]
[329817885,1718695833472,-1328.42702986,0.00021817,2]
[329817886,1718695833482,-335.41272051,0.00021913,2]
[329817887,1718695833491,-155.0,0.00021915,2]
[329817888,1718695833500,-523.49222436,0.00021915,2]
[329817889,1718695833510,-168.11129243,0.00021915,2]
[329817890,1718695833520,-654.0,0.00021917,2]
[329817891,1718695833530,-192.21375615,0.00021917,2]
[329817892,1718695833539,-8884.2417422,0.00021917,2]
[329817893,1718695833549,-16470.66151088,0.00021917,2]
[329817894,1718695833558,-169.94176797,0.00021917,2]
[329817895,1718695833568,-299.97320991,0.00021917,2]
[329817896,1718695833578,-1137.44,0.00021917,2]
[329817897,1718695833587,-500.0,0.00021917,2]
[329817898,1718695833597,-500.0,0.00021917,2]
[329817899,1718695833607,-500.0,0.00021917,2]
[329817900,1718695833617,-668.99,0.00021917,2]
[329817901,1718695833626,-500.0,0.00021917,2]
[329817902,1718695833636,-500.0,0.00021917,2]
[329817903,1718695833645,-500.0,0.00021917,2]
[329817904,1718695833656,-500.0,0.00021917,2]
[329817905,1718695833667,-639.58,0.00021917,2]
[329817906,1718695833676,-513.89,0.00021917,2]
[329817907,1718695833686,-500.0,0.00021917,2]
[329817908,1718695833696,-500.0,0.00021917,2]
[329817909,1718695833707,-500.0,0.00021917,2]
[329817910,1718695833718,-500.0,0.00021917,2]
[329817911,1718695833732,-500.0,0.00021917,2]
[329817912,1718695833741,-500.0,0.00021917,2]
[329817913,1718695833751,-500.0,0.00021917,2]
[329817914,1718695833761,-500.0,0.00021917,2]
[329817915,1718695833771,-500.0,0.00021917,2]
[329817916,1718695833780,-500.0,0.00021917,2]
[329817917,1718695833790,-500.0,0.00021917,2]
[329817918,1718695833802,-500.0,0.00021917,2]
[329817919,1718695833812,-500.0,0.00021917,2]
[329817920,1718695833821,-500.0,0.00021917,2]
[329817921,1718695833830,-500.0,0.00021917,2]
[329817922,1718695833839,-500.0,0.00021917,2]
[329817923,1718695833848,-506.5375325,0.00021917,2]
[329817924,1718695833858,-512.42,0.00021917,2]
[329817925,1718695833869,-156.94653221,0.00021917,2]
[329817926,1718695833879,-533.59,0.00021917,2]
[329817927,1718695833890,-500.0,0.00021917,2]
[329817928,1718695833900,-500.0,0.00021917,2]
[329817929,1718695833910,-500.0,0.00021917,2]
[329817930,1718695833919,-500.0,0.00021917,2]
[329817931,1718695833929,-500.0,0.00021917,2]
[329817932,1718695833939,-500.0,0.00021917,2]
[329817933,1718695833949,-500.0,0.00021917,2]
[329817934,1718695833958,-721.1,0.00021917,2]
[329817935,1718695833968,-500.0,0.00021917,2]
[329817936,1718695833979,-500.0,0.00021917,2]
[329817937,1718695833988,-500.0,0.00021917,2]
[329817938,1718695833997,-500.0,0.00021917,2]
[329817939,1718695834009,-500.0,0.00021917,2]
[329817940,1718695834019,-500.0,0.00021917,2]
[329817941,1718695834029,-577.57,0.00021917,2]
[329817942,1718695834038,-500.0,0.00021917,2]
[329817943,1718695834047,-500.0,0.00021917,2]
[329817944,1718695834056,-500.0,0.00021917,2]
[329817945,1718695834065,-500.0,0.00021917,2]
[329817946,1718695834075,-500.0,0.00021917,2]
[329817947,1718695834085,-500.0,0.00021917,2]
[329817948,1718695834095,-500.0,0.00021917,2]
[329817949,1718695834104,-500.0,0.00021917,2]
[329817950,1718695834113,-500.0,0.00021917,2]
[329817951,1718695834123,-500.0,0.00021917,2]
[329817952,1718695834133,-500.0,0.00021917,2]
[329817953,1718695834142,-500.0,0.00021917,2]
[329817954,1718695834151,-500.0,0.00021917,2]
[329817955,1718695834161,-500.0,0.00021917,2]
[329817956,1718695834171,-500.0,0.00021917,2]
[329817957,1718695834180,-500.0,0.00021917,2]
[329817958,1718695834190,-261.29503687,0.00021917,2]
[329817959,1718695834199,-507.53128403,0.00021917,2]
[329817960,1718695834209,-500.0,0.00021917,2]
[329817961,1718695834218,-500.0,0.00021917,2]
[329817962,1718695834227,-500.0,0.00021917,2]
[329817963,1718695834236,-541.38,0.00021917,2]
[329817964,1718695834246,-500.0,0.00021917,2]
[329817965,1718695834256,-91.82373921,0.00021917,2]
[329817966,1718695834274,-408.17626079,0.00021917,2]
[329817967,1718695834283,-76.14373921,0.00021917,2]
[329817968,1718695834295,-423.85626079,0.00021917,2]
[329817969,1718695834304,-500.0,0.00021917,2]
[329817970,1718695834314,-500.0,0.00021917,2]
[329817971,1718695834323,-500.0,0.00021917,2]
[329817972,1718695834333,-505.71095868,0.00021917,2]
[329817973,1718695834342,-500.0,0.00021917,2]
[329817974,1718695834352,-324.50900387,0.00021917,2]
[329817975,1718695834361,-632.58915814,0.00021917,2]
[329817976,1718695834371,-500.0,0.00021917,2]
[329817977,1718695834380,-500.0,0.00021917,2]
[329817978,1718695834390,-500.0,0.00021917,2]
[329817979,1718695834399,-500.0,0.00021917,2]
[329817980,1718695834409,-500.0,0.00021917,2]
[329817981,1718695834418,-500.0,0.00021917,2]
[329817982,1718695834427,-8.61561082,0.00021917,2]
[329817983,1718695834441,-549.36438918,0.00021917,2]
[329817984,1718695834450,-500.0,0.00021917,2]
[329817985,1718695834459,-500.0,0.00021917,2]
[329817986,1718695834469,-500.0,0.00021917,2]
[329817987,1718695834479,-500.0,0.00021917,2]
[329817988,1718695834488,-500.0,0.00021917,2]
[329817989,1718695834498,-500.0,0.00021917,2]
[329817990,1718695834509,-500.0,0.00021917,2]
[329817991,1718695834519,-500.0,0.00021917,2]
[329817992,1718695834528,-655.57,0.00021917,2]